fUST/lending_fUST_20250115
["ID","MTS","AMOUNT","RATE_DAILY","PERIOD"]
[349010205,1736935837076,-500.0,0.0002205,3]
[349010206,1736935837085,-500.0,0.0002205,3]
[349010207,1736935837095,-500.0,0.0002205,3]
[349010208,1736935837105,-246.14856338,0.0002205,3]
[349010209,1736935837116,-500.0,0.0002205,3]
[349010210,1736935837127,-500.0,0.0002205,3]
[349010211,1736935837136,-500.0,0.0002205,3]
[349010212,1736935837146,-500.0,0.00022172,3]
[349010213,1736935837155,-500.0,0.00022172,3]
[349010214,1736935837166,-500.0,0.00022172,3]
[349010215,1736935837176,-500.0,0.00022172,3]
[349010216,1736935837186,-500.0,0.00022172,3]
[349010217,1736935837197,-500.0,0.00022172,3]
[349010218,1736935837207,-500.0,0.00022172,3]
[349010219,1736935837217,-500.0,0.00022172,3]
[349010220,1736935837227,-801.92,0.00022172,3]
[349010221,1736935837237,-500.0,0.00022172,3]
[349010222,1736935837247,-500.0,0.00022172,3]
[349010223,1736935837258,-500.0,0.00022172,3]
[349010224,1736935837268,-1153.74,0.00022172,3]
[349010225,1736935837277,-500.0,0.00022172,3]
[349010226,1736935837286,-2068.41,0.00022172,3]
[349010227,1736935837296,-500.0,0.00022186,3]
[349010228,1736935837305,-500.0,0.00022186,3]
[349010229,1736935837314,-500.0,0.00022186,3]
[349010230,1736935837324,-500.0,0.00022186,3]
[349010231,1736935837333,-500.0,0.00022186,3]
[349010232,1736935837343,-500.0,0.00022186,2]
[349010233,1736935837353,-500.0,0.00022187,3]
[349010234,1736935837362,-2390.95,0.00022187,3]
[349010235,1736935837372,-515.26188312,0.00022187,3]
[349010236,1736935837381,-511.9068935,0.00022187,3]
[349010237,1736935837390,-500.0,0.00022187,3]
[349010238,1736935837400,-610.02,0.00022187,3]
[349010239,1736935837410,-500.0,0.00022187,3]
[349010240,1736935837419,-258.43696332,0.00022187,3]
[349010241,1736935837429,-500.0,0.00022187,3]
[349010242,1736935837439,-500.0,0.00022187,3]
[349010243,1736935837448,-500.0,0.00022187,3]
[349010244,1736935837457,-500.0,0.00022187,3]
[349010245,1736935837467,-500.0,0.00022187,3]
[349010246,1736935837477,-500.0,0.00022187,3]
[349010248,1736935837486,-500.0,0.00022187,3]
[349010250,1736935837496,-500.0,0.00022187,3]
[349010252,1736935837507,-610.48,0.00022187,3]
[349010254,1736935837516,-500.0,0.00022187,3]
[349010256,1736935837527,-500.0,0.00022187,3]
[349010257,1736935837537,-500.0,0.00022187,3]
[349010258,1736935837547,-500.0,0.00022187,3]
[349010259,1736935837559,-500.0,0.00022187,3]
[349010260,1736935837568,-500.0,0.00022187,3]
[349010261,1736935837577,-500.0,0.00022187,3]
[349010262,1736935837587,-500.0,0.00022187,3]
[349010263,1736935837596,-500.0,0.00022187,3]
[349010264,1736935837606,-569.76,0.00022187,3]
[349010265,1736935837615,-495.81657827,0.00022187,3]
[349010266,1736935837624,-500.0,0.00022187,3]
[349010267,1736935837633,-500.0,0.00022187,3]
[349010268,1736935837643,-500.0,0.00022187,3]
[349010269,1736935837652,-503.48,0.00022188,3]
[349010270,1736935837662,-395.0,0.0002229,2]
[349010271,1736935837671,-500.0,0.00022309,3]
[349010273,1736935837681,-500.0,0.00022309,3]
[349010274,1736935837690,-500.0,0.00022309,3]
[349010276,1736935837701,-500.0,0.00022309,3]
[349010278,1736935837710,-500.0,0.00022309,3]
[349010280,1736935837719,-801.92,0.00022309,3]
[349010282,1736935837729,-394.51,0.00022309,3]
[349010284,1736935837741,-232.28,0.00022309,3]
[349010287,1736935837752,-500.0,0.00022309,3]
[349010289,1736935837762,-1153.74,0.00022309,3]
[349010290,1736935837772,-636.56,0.00022309,3]
[349010292,1736935837783,-2068.41,0.00022309,3]
[349010294,1736935837792,-500.0,0.00022323,3]
[349010296,1736935837801,-500.0,0.00022323,3]
[349010298,1736935837811,-500.0,0.00022323,3]
[349010300,1736935837820,-500.0,0.00022323,3]
[349010302,1736935837831,-500.0,0.00022323,2]
[349010304,1736935837840,-2390.95,0.00022324,3]
[349010306,1736935837849,-500.0,0.00022324,3]
[349010308,1736935837859,-500.0,0.00022324,3]
[349010310,1736935837869,-500.0,0.00022324,3]
[349010312,1736935837878,-173.14,0.00022324,3]
[349010314,1736935837887,-272.48,0.00022324,3]
[349010316,1736935837896,-500.0,0.00022324,3]
[349010318,1736935837906,-500.0,0.00022446,3]
[349010320,1736935837915,-500.0,0.00022446,3]
[349010322,1736935837925,-500.0,0.00022446,3]
[349010324,1736935837934,-420.9,0.00022446,3]
[349010326,1736935837943,-500.0,0.00022446,3]
[349010328,1736935837953,-801.92,0.00022446,3]
[349010330,1736935837963,-500.0,0.00022446,3]
[349010332,1736935837972,-1153.74,0.00022446,3]
[349010334,1736935837981,-2068.41,0.00022446,3]
[349010336,1736935837991,-500.0,0.0002246,3]
[349010338,1736935838001,-500.0,0.0002246,3]
[349010340,1736935838011,-500.0,0.0002246,3]
[349010342,1736935838020,-500.0,0.0002246,2]
[349010344,1736935838031,-2390.95,0.00022461,3]
[349010346,1736935838040,-384.44,0.00022461,3]
[349010348,1736935838049,-460.78,0.00022461,3]
[349010350,1736935838058,-561.5,0.00022461,3]
[349010353,1736935838069,-500.0,0.00022461,3]
[349010355,1736935838078,-500.0,0.00022583,3]
[349010357,1736935838087,-500.0,0.00022583,3]
[349010359,1736935838097,-500.0,0.00022583,3]
[349010361,1736935838107,-503.48,0.00022583,3]
[349010363,1736935838117,-500.0,0.00022583,3]
[349010365,1736935838129,-801.92,0.00022583,3]
[349010367,1736935838138,-500.0,0.00022583,3]
[349010369,1736935838147,-1153.74,0.00022583,3]
[349010371,1736935838156,-2068.41,0.00022583,3]
[349010373,1736935838167,-500.0,0.00022597,3]
[349010375,1736935838177,-500.0,0.00022597,3]
[349010377,1736935838186,-577.9,0.00022597,3]
[349010379,1736935838196,-500.0,0.00022597,2]
[349010381,1736935838206,-2390.95,0.00022598,3]
[349010383,1736935838215,-500.0,0.00022598,3]
[349010385,1736935838225,-500.0,0.0002272,3]
[349010387,1736935838235,-500.0,0.0002272,3]
[349010389,1736935838244,-248.92,0.0002272,3]
[349010391,1736935838253,-503.48,0.0002272,3]
[349010393,1736935838263,-500.0,0.0002272,3]
[349010395,1736935838272,-801.92,0.0002272,3]
[349010397,1736935838282,-500.0,0.0002272,3]
[349010399,1736935838292,-1153.74,0.0002272,3]
[349010401,1736935838302,-2068.41,0.0002272,3]
[349010403,1736935838312,-500.0,0.00022734,3]
[349010405,1736935838322,-217.64,0.00022734,3]
[349010407,1736935838332,-500.0,0.00022734,2]
[349010409,1736935838341,-2390.95,0.00022735,3]
[349010411,1736935838351,-239.44,0.00022735,3]
[349010414,1736935838361,-500.0,0.00022857,3]
[349010416,1736935838371,-364.36,0.00022857,3]
[349010418,1736935838380,-567.37754953,0.00022857,3]
[349010420,1736935838389,-801.92,0.00022857,3]
[349010422,1736935838399,-358.28,0.00022857,3]
[349010424,1736935838408,-1153.74,0.00022857,3]
[349010426,1736935838419,-2068.41,0.00022857,3]
[349010439,1736935838429,-500.0,0.00022871,3]
[349010441,1736935838542,-500.0,0.00022871,2]
[349010443,1736935838551,-2390.95,0.00022872,3]
[349010445,1736935838560,-741.32454967,0.000229,2]
[349010447,1736935838570,-1107.69156264,0.00022934,2]
[349010449,1736935838579,-1107.69156264,0.00022969,2]
[349010451,1736935838588,-500.0,0.00022994,3]
[349010453,1736935838597,-500.0,0.00022994,3]
[349010455,1736935838607,-503.48,0.00022994,3]
[349010457,1736935838616,-801.92,0.00022994,3]
[349010459,1736935838625,-1153.74,0.00022994,3]
[349010461,1736935838634,-2068.41,0.00022994,3]
[349010463,1736935838643,-500.0,0.00022998,3]
[349010465,1736935838654,-501.38642966,0.00022998,3]
[349010467,1736935838663,-500.0,0.00022998,3]
[349010469,1736935838672,-993.03,0.00022998,3]
[349010471,1736935838682,-307.72987423,0.00022998,3]
[349010473,1736935838691,-187.2257504,0.00022998,3]
[349010475,1736935838701,-500.0,0.00022998,3]
[349010477,1736935838712,-500.0,0.00022998,3]
[349010479,1736935838721,-500.0,0.00022998,3]
[349010481,1736935838731,-1689.93,0.00022999,3]
[349010483,1736935838741,-792.39,0.00022999,3]
[349010485,1736935838751,-500.0,0.00022999,3]
[349010487,1736935838760,-1107.69156264,0.00023003,2]
[349010489,1736935838771,-275.62148188,0.00023008,2]
[349010491,1736935838781,-227.53631097,0.00023008,2]
[349010493,1736935838791,-248.11969808,0.00023008,2]
[349010495,1736935838800,-500.0,0.00023008,2]
[349010497,1736935838810,-500.0,0.00023008,3]
[349010499,1736935838820,-198.8496,0.00023008,2]
[349010501,1736935838829,-2390.95,0.00023009,3]
[349010503,1736935838839,-1200.0,0.00023017,2]
[349010505,1736935838849,-1107.69156264,0.00023038,2]
[349010507,1736935838859,-1107.69156264,0.00023072,2]
[349010509,1736935838868,-1107.69156264,0.00023107,2]
[349010511,1736935838878,-500.0,0.00023131,3]
[349010513,1736935838887,-500.0,0.00023131,3]
[349010515,1736935838897,-801.92,0.00023131,3]
[349010517,1736935838906,-1153.74,0.00023131,3]
[349010519,1736935838916,-2068.41,0.00023131,3]
[349010521,1736935838926,-503.48,0.00023134,3]
[349010523,1736935838935,-993.03,0.00023135,3]
[349010525,1736935838947,-500.0,0.00023135,3]
[349010527,1736935838957,-1689.93,0.00023136,3]
[349010529,1736935838969,-792.39,0.00023136,3]
[349010531,1736935838980,-500.0,0.00023136,3]
[349010533,1736935838990,-1107.69156264,0.00023141,2]
[349010535,1736935839000,-500.0,0.00023145,3]
[349010537,1736935839010,-2390.95,0.00023146,3]
[349010539,1736935839019,-1107.69156264,0.00023176,2]
[349010542,1736935839029,-1107.69156264,0.0002321,2]
[349010544,1736935839038,-1107.69156264,0.00023245,2]
[349010546,1736935839048,-500.0,0.00023268,3]
[349010548,1736935839058,-500.0,0.00023268,3]
[349010550,1736935839067,-801.92,0.00023268,3]
[349010552,1736935839076,-1153.74,0.00023268,3]
[349010554,1736935839086,-2068.41,0.00023268,3]
[349010556,1736935839095,-993.03,0.00023272,3]
[349010558,1736935839104,-1689.93,0.00023273,3]
[349010559,1736935839114,-792.39,0.00023273,3]
[349010561,1736935839126,-1107.69156264,0.00023279,2]
[349010564,1736935839136,-500.0,0.00023282,3]
[349010566,1736935839145,-2390.95,0.00023283,3]
[349010567,1736935839154,-503.48,0.00023309,3]
[349010569,1736935839163,-1107.69156264,0.00023314,2]
[349010571,1736935839174,-1107.69156264,0.00023348,2]
[349010573,1736935839184,-1107.69156264,0.00023383,2]
[349010575,1736935839196,-11676.5509089,0.00023391,2]
[349010577,1736935839205,-500.0,0.00023405,3]
[349010580,1736935839215,-271.32,0.00023405,3]
[349010582,1736935839224,-801.92,0.00023405,3]
[349010583,1736935839234,-1153.74,0.00023405,3]
[349010585,1736935839243,-2068.41,0.00023405,3]
[349010588,1736935839253,-993.03,0.00023409,3]
[349010590,1736935839263,-1689.93,0.0002341,3]
[349010592,1736935839272,-792.39,0.0002341,3]
[349010594,1736935839282,-1107.69156264,0.00023417,2]
[349010596,1736935839292,-500.0,0.00023419,3]
[349010598,1736935839302,-2390.95,0.0002342,3]
[349010600,1736935839313,-1107.69156264,0.00023452,2]
[349010602,1736935839322,-503.48,0.00023486,3]
[349010604,1736935839331,-1107.69156264,0.00023486,2]
[349010606,1736935839341,-1107.69156264,0.00023521,2]
[349010608,1736935839353,-500.0,0.00023542,3]
[349010610,1736935839362,-801.92,0.00023542,3]
[349010612,1736935839372,-1153.74,0.00023542,3]
[349010614,1736935839381,-2068.41,0.00023542,3]
[349010616,1736935839391,-993.03,0.00023546,3]
[349010618,1736935839401,-1689.93,0.00023547,3]
[349010620,1736935839410,-792.39,0.00023547,3]
[349010622,1736935839420,-1107.69156264,0.00023555,2]
[349010624,1736935839429,-500.0,0.00023556,3]
[349010626,1736935839440,-2390.95,0.00023557,3]
[349010628,1736935839449,-1039.0,0.00023587,4]
[349010630,1736935839459,-1107.69156264,0.0002359,2]
[349010632,1736935839468,-2000.0,0.000236,2]
[349010634,1736935839478,-4714.24889409,0.00023614,60]
[349010636,1736935839488,-180.27515114,0.00023623,2]
[349010638,1736935839497,-1107.69156264,0.00023624,2]
[349010640,1736935839507,-1107.69156264,0.00023659,2]
[349010642,1736935839516,-503.48,0.00023665,3]
[349010644,1736935839525,-503.48,0.00023666,3]
[349010646,1736935839536,-503.48,0.00023666,3]
[349010648,1736935839546,-503.48,0.00023666,3]
[349010650,1736935839555,-503.48,0.00023666,3]
[349010652,1736935839564,-503.48,0.00023666,3]
[349010654,1736935839574,-503.48,0.00023666,3]
[349010656,1736935839583,-503.48,0.00023666,3]
[349010658,1736935839593,-503.48,0.00023666,3]
[349010660,1736935839603,-503.48,0.00023666,3]
[349010662,1736935839612,-503.48,0.00023666,3]
[349010665,1736935839621,-503.48,0.00023666,3]
[349010668,1736935839631,-503.48,0.00023666,3]
[349010671,1736935839641,-503.48,0.00023666,3]
[349010673,1736935839650,-503.48,0.00023666,3]
[349010675,1736935839663,-503.57,0.00023666,3]
[349010677,1736935839672,-2532.21343445,0.00023667,5]
[349010678,1736935839681,-1399.70070335,0.00023667,5]
[349010679,1736935839690,-151.0,0.00023667,7]
[349010680,1736935839699,-151.0,0.00023667,7]
[349010681,1736935839708,-151.0,0.00023667,7]
[349010682,1736935839717,-151.0,0.00023667,7]
[349010683,1736935839725,-151.0,0.00023667,7]
[349010684,1736935839734,-151.0,0.00023667,7]
[349010685,1736935839744,-151.0,0.00023667,7]
[349010686,1736935839753,-280.451423,0.00023667,7]
[349010687,1736935839763,-151.0,0.00023667,7]
[349010688,1736935839772,-151.0,0.00023667,7]
[349010689,1736935839787,-151.0,0.00023667,7]
[349010690,1736935839796,-151.0,0.00023667,7]
[349010691,1736935839805,-151.0,0.00023667,7]
[349010692,1736935839815,-151.0,0.00023667,7]
[349010693,1736935839823,-151.0,0.00023667,7]
[349010694,1736935839833,-151.0,0.00023667,7]
[349010695,1736935839842,-151.0,0.00023667,7]
[349010696,1736935839850,-151.0,0.00023667,7]
[349010698,1736935839860,-151.0,0.00023667,7]
[349010700,1736935839869,-151.0,0.00023667,7]
[349010702,1736935839878,-151.0,0.00023667,7]
[349010704,1736935839888,-151.0,0.00023667,7]
[349010706,1736935839897,-175.74108,0.00023667,7]
[349010708,1736935839906,-151.0,0.00023667,7]
[349010710,1736935839915,-151.0,0.00023667,7]
[349010712,1736935839924,-151.0,0.00023667,7]
[349010714,1736935839933,-151.0,0.00023667,7]
[349010715,1736935839942,-151.0,0.00023667,7]
[349010717,1736935839951,-151.0,0.00023667,7]
[349010720,1736935839961,-151.0,0.00023667,7]
[349010721,1736935839971,-275.58938,0.00023667,7]
[349010724,1736935839981,-151.0,0.00023667,7]
[349010725,1736935839990,-151.0,0.00023667,7]
[349010727,1736935840000,-151.0,0.00023667,7]
[349010729,1736935840009,-151.0,0.00023667,7]
[349010732,1736935840019,-151.0,0.00023667,7]
[349010734,1736935840030,-151.0,0.00023667,7]
[349010736,1736935840039,-151.0,0.00023667,7]
[349010738,1736935840049,-151.0,0.00023667,7]
[349010740,1736935840059,-151.0,0.00023667,7]
[349010742,1736935840069,-151.0,0.00023667,7]
[349010744,1736935840079,-151.0,0.00023667,7]
[349010746,1736935840088,-238.817411,0.00023667,7]
[349010748,1736935840098,-151.0,0.00023667,7]
[349010750,1736935840108,-151.0,0.00023667,7]
[349010752,1736935840119,-151.0,0.00023667,7]
[349010754,1736935840132,-151.0,0.00023667,7]
[349010756,1736935840141,-151.0,0.00023667,7]
[349010758,1736935840151,-151.0,0.00023667,7]
[349010760,1736935840162,-151.0,0.00023667,7]
[349010762,1736935840170,-151.0,0.00023667,7]
[349010764,1736935840180,-151.0,0.00023667,7]
[349010766,1736935840190,-295.761414,0.00023667,7]
[349010768,1736935840200,-151.0,0.00023667,7]
[349010770,1736935840209,-151.0,0.00023667,7]
[349010772,1736935840219,-151.0,0.00023667,7]
[349010774,1736935840229,-151.0,0.00023667,7]
[349010776,1736935840238,-239.577433,0.00023667,7]
[349010778,1736935840247,-151.0,0.00023667,7]
[349010780,1736935840257,-151.0,0.00023667,7]
[349010782,1736935840267,-151.0,0.00023667,7]
[349010784,1736935840276,-151.0,0.00023667,7]
[349010786,1736935840287,-151.0,0.00023667,7]
[349010788,1736935840298,-151.0,0.00023667,7]
[349010790,1736935840307,-230.401641,0.00023667,7]
[349010792,1736935840317,-230.401641,0.00023667,7]
[349010794,1736935840326,-230.401641,0.00023667,7]
[349010796,1736935840336,-230.401641,0.00023667,7]
[349010798,1736935840345,-230.401641,0.00023667,7]
[349010800,1736935840354,-230.401641,0.00023667,7]
[349010802,1736935840365,-230.401641,0.00023667,7]
[349010804,1736935840375,-230.401641,0.00023667,7]
[349010806,1736935840384,-230.401641,0.00023667,7]
[349010808,1736935840394,-230.401641,0.00023667,7]
[349010810,1736935840404,-230.401641,0.00023667,7]
[349010812,1736935840413,-230.401641,0.00023667,7]
[349010814,1736935840422,-230.401641,0.00023667,7]
[349010816,1736935840431,-230.401641,0.00023667,7]
[349010818,1736935840440,-230.401641,0.00023667,7]
[349010820,1736935840450,-230.401641,0.00023667,7]
[349010822,1736935840459,-230.401641,0.00023667,7]
[349010824,1736935840468,-230.401641,0.00023667,7]
[349010826,1736935840477,-230.401641,0.00023667,7]
[349010828,1736935840487,-230.401635,0.00023667,7]
[349010830,1736935840496,-151.0,0.00023667,7]
[349010832,1736935840506,-151.0,0.00023667,7]
[349010834,1736935840515,-151.0,0.00023667,7]
[349010836,1736935840524,-151.0,0.00023667,7]
[349010838,1736935840533,-151.0,0.00023667,7]
[349010840,1736935840542,-151.0,0.00023667,7]
[349010842,1736935840552,-151.0,0.00023667,7]
[349010844,1736935840561,-151.0,0.00023667,7]
[349010846,1736935840570,-151.0,0.00023667,7]
[349010848,1736935840579,-151.0,0.00023667,7]
[349010849,1736935840588,-151.0,0.00023667,7]
[349010852,1736935840597,-151.0,0.00023667,7]
[349010854,1736935840607,-212.533596,0.00023667,7]
[349010856,1736935840616,-188.0655,0.00023667,7]
[349010858,1736935840625,-188.0655,0.00023667,7]
[349010860,1736935840636,-188.0655,0.00023667,7]
[349010861,1736935840645,-188.0655,0.00023667,7]
[349010863,1736935840654,-188.0655,0.00023667,7]
[349010866,1736935840663,-188.0655,0.00023667,7]
[349010868,1736935840672,-188.0655,0.00023667,7]
[349010870,1736935840682,-188.0655,0.00023667,7]
[349010872,1736935840691,-188.0655,0.00023667,7]
[349010874,1736935840700,-188.0655,0.00023667,7]
[349010876,1736935840709,-188.0655,0.00023667,7]
[349010878,1736935840719,-188.0655,0.00023667,7]
[349010880,1736935840728,-188.0655,0.00023667,7]
[349010882,1736935840738,-188.0655,0.00023667,7]
[349010884,1736935840748,-188.0655,0.00023667,7]
[349010886,1736935840758,-188.0655,0.00023667,7]
[349010888,1736935840767,-188.0655,0.00023667,7]
[349010890,1736935840776,-188.0655,0.00023667,7]
[349010891,1736935840786,-188.0655,0.00023667,7]
[349010894,1736935840796,-188.06549396,0.00023667,7]
[349010896,1736935840805,-151.0,0.00023667,7]
[349010898,1736935840815,-151.0,0.00023667,7]
[349010900,1736935840824,-151.0,0.00023667,7]
[349010902,1736935840833,-151.0,0.00023667,7]
[349010904,1736935840843,-151.0,0.00023667,7]
[349010906,1736935840852,-151.0,0.00023667,7]
[349010908,1736935840861,-151.0,0.00023667,7]
[349010910,1736935840871,-151.0,0.00023667,7]
[349010912,1736935840880,-183.124491,0.00023667,7]
[349010913,1736935840889,-151.0,0.00023667,7]
[349010916,1736935840898,-151.0,0.00023667,7]
[349010918,1736935840908,-151.0,0.00023667,7]
[349010919,1736935840918,-151.0,0.00023667,7]
[349010921,1736935840927,-151.0,0.00023667,7]
[349010923,1736935840938,-151.0,0.00023667,7]
[349010925,1736935840947,-151.0,0.00023667,7]
[349010927,1736935840957,-151.0,0.00023667,7]
[349010930,1736935840967,-151.0,0.00023667,7]
[349010932,1736935840976,-151.0,0.00023667,7]
[349010934,1736935840985,-151.0,0.00023667,7]
[349010936,1736935840995,-151.0,0.00023667,7]
[349010938,1736935841004,-151.0,0.00023667,7]
[349010940,1736935841014,-151.0,0.00023667,7]
[349010942,1736935841024,-151.0,0.00023667,7]
[349010944,1736935841035,-151.0,0.00023667,7]
[349010946,1736935841044,-241.416526,0.00023667,7]
[349010957,1736935841132,-860.516253,0.00023667,7]
[349010959,1736935841151,-860.516253,0.00023667,7]
[349010961,1736935841162,-860.516253,0.00023667,7]
[349010963,1736935841171,-860.516253,0.00023667,7]
[349010965,1736935841181,-860.516253,0.00023667,7]
[349010967,1736935841190,-860.516253,0.00023667,7]
[349010969,1736935841201,-860.516253,0.00023667,7]
[349010971,1736935841210,-860.516253,0.00023667,7]
[349010973,1736935841220,-860.516253,0.00023667,7]
[349010975,1736935841229,-860.516253,0.00023667,7]
[349010977,1736935841238,-860.516253,0.00023667,7]
[349010979,1736935841247,-860.516253,0.00023667,7]
[349010981,1736935841256,-860.516253,0.00023667,7]
[349010983,1736935841266,-860.516253,0.00023667,7]
[349010985,1736935841275,-860.516253,0.00023667,7]
[349010987,1736935841285,-860.516253,0.00023667,7]
[349010989,1736935841295,-860.516253,0.00023667,7]
[349010991,1736935841304,-860.516253,0.00023667,7]
[349010993,1736935841313,-860.516253,0.00023667,7]
[349010996,1736935841323,-860.516247,0.00023667,7]
[349010998,1736935841332,-151.0,0.00023667,7]
[349011000,1736935841342,-151.0,0.00023667,7]
[349011001,1736935841351,-151.0,0.00023667,7]
[349011004,1736935841361,-151.0,0.00023667,7]
[349011006,1736935841370,-151.0,0.00023667,7]
[349011008,1736935841379,-151.0,0.00023667,7]
[349011010,1736935841389,-151.0,0.00023667,7]
[349011012,1736935841398,-151.0,0.00023667,7]
[349011014,1736935841407,-151.0,0.00023667,7]
[349011015,1736935841417,-151.0,0.00023667,7]
[349011018,1736935841426,-151.0,0.00023667,7]
[349011020,1736935841435,-261.672544,0.00023667,7]
[349011022,1736935841445,-53253.0436137,0.00023672,61]
[349011030,1736935841511,-10793.27102644,0.00023672,61]
[349011034,1736935841543,-222378.99176714,0.00023672,61]
[349011036,1736935841554,-9411.83225358,0.00023672,61]
[349011045,1736935841631,-500.0,0.00023672,61]
[349011049,1736935841660,-18806.1858548,0.00023672,61]
[349011052,1736935841671,-8676.81016594,0.00023672,61]
[349011216,1736935843206,-500.0,0.0002205,3]
[349011218,1736935843216,-500.0,0.00022187,3]
[349011220,1736935843225,-36080.00052897,0.00023672,61]
[349011751,1736935848039,-573.35015682,0.0002205,3]
[349011753,1736935848049,-500.0,0.00022186,3]
[349011755,1736935848059,-500.0,0.00022323,3]
[349011757,1736935848068,-13605.29952134,0.00023672,61]
[349013880,1736936086163,-601.92,0.000238,30]
[349013881,1736936086193,-158.4,0.000239,31]
[349013882,1736936086224,-158.4,0.000239,31]
[349013883,1736936086253,-158.4,0.000239,31]
[349013884,1736936086281,-631.1480552,0.00023977,30]
[349013885,1736936086308,-11222.17526969,0.00023978,30]
[349013886,1736936086333,-732.38393735,0.00023983,30]
[349013887,1736936086361,-631.1480552,0.00023984,30]
[349013888,1736936086386,-631.1480552,0.00023985,30]
[349013889,1736936086411,-11222.17526969,0.00023985,30]
[349013890,1736936086437,-11137.16038475,0.0002399,30]
[349013891,1736936086462,-732.38393735,0.00023992,30]
[349013892,1736936086488,-732.38393735,0.00023994,30]
[349013893,1736936086513,-11222.17526969,0.00023996,30]
[349013894,1736936086538,-11137.16038475,0.00023998,30]
[349013895,1736936086562,-11137.16038475,0.00023999,30]
[349013896,1736936086588,-167.764304,0.0002411,41]
[349013897,1736936086611,-167.764304,0.0002411,80]
[349013898,1736936086639,-167.764304,0.0002411,119]
[349013899,1736936086667,-158.4,0.000246,31]
[349013900,1736936086694,-158.4,0.000246,31]
[349013901,1736936086719,-5000000.0,0.00024658,29]
[349013902,1736936086743,-12200.0,0.00024674,30]
[349013903,1736936086769,-1000.5,0.00025,31]
[349013904,1736936086794,-1000.5,0.00025,31]
[349013905,1736936086820,-500.5,0.00025,31]
[349013906,1736936086844,-233.2,0.00025,31]
[349013907,1736936086870,-6936.0,0.00025,30]
[349013908,1736936086895,-1198.4844433,0.00025,30]
[349013909,1736936086920,-309.149402,0.00025,30]
[349013910,1736936087073,-7438.69753278,0.00025,30]
[349013911,1736936087104,-158.4,0.000252,31]
[349013912,1736936087132,-158.4,0.000252,31]
[349013913,1736936087160,-158.4,0.000259,31]
[349013914,1736936087187,-158.4,0.000259,31]
[349013915,1736936087213,-239544.63751725,0.00026,30]
[349013916,1736936087238,-850.0,0.00026,120]
[349013917,1736936087262,-154481.51680764,0.00026,30]
[349013918,1736936087286,-121839.33704431,0.00026,30]
[349013919,1736936087311,-1013486.92821426,0.00026,30]
[349013920,1736936087335,-7438.69753278,0.00026,120]
[349013921,1736936087359,-28499.57669062,0.00026,30]
[349013922,1736936087384,-3329342.85896209,0.00026027,29]
[349013923,1736936203420,161.650052,0.00013973,2]
[349014273,1736937040282,-166.726936,0.0002063,2]
[349014275,1736937040292,-5546.32527055,0.0002078,2]
[349014277,1736937040306,-1721.6296,0.0002078,2]
[349014279,1736937040317,-679.74120495,0.0002078,2]
[349014281,1736937040327,-2361.0,0.00020788,2]
[349014283,1736937040337,-4149.17766089,0.0002079,2]
[349014286,1736937040349,-331.05581958,0.0002079,2]
[349014288,1736937040361,-5003.76720141,0.0002079,2]
[349014592,1736937043258,-234.25217423,0.000189,2]